fUST/lending_fUST_20250128
["ID","MTS","AMOUNT","RATE_DAILY","PERIOD"]
[350642937,1738015844070,-500.0,0.0001726,2]
[350642938,1738015844079,-500.0,0.0001726,2]
[350642939,1738015844088,-559.51,0.0001726,2]
[350642940,1738015844097,-500.0,0.0001726,2]
[350642941,1738015844107,-729.27,0.0001726,2]
[350642942,1738015844116,-500.0,0.00017337,2]
[350642943,1738015844125,-500.0,0.00017396,2]
[350642944,1738015844134,-380.0684346,0.00017397,2]
[350642945,1738015844143,-500.0,0.00017397,2]
[350642946,1738015844152,-500.0,0.00017397,2]
[350642947,1738015844161,-559.51,0.00017397,2]
[350642948,1738015844170,-500.0,0.00017397,2]
[350642949,1738015844179,-729.27,0.00017397,2]
[350642950,1738015844188,-500.0,0.00017533,2]
[350642951,1738015844199,-479.64968999,0.00017534,2]
[350642952,1738015844207,-500.0,0.00017534,2]
[350642953,1738015844216,-559.51,0.00017534,2]
[350642954,1738015844225,-500.0,0.00017534,2]
[350642955,1738015844234,-729.27,0.00017534,2]
[350642956,1738015844243,-635.45,0.00017671,2]
[350642957,1738015844252,-559.51,0.00017671,2]
[350642958,1738015844261,-500.0,0.00017671,2]
[350642959,1738015844271,-729.27,0.00017671,2]
[350642960,1738015844280,-559.51,0.00017808,2]
[350642961,1738015844289,-500.0,0.00017808,2]
[350642962,1738015844299,-729.27,0.00017808,2]
[350642963,1738015844307,-559.51,0.00017945,2]
[350642964,1738015844316,-499.7708685,0.00017945,2]
[350642965,1738015844326,-729.27,0.00017945,2]
[350642966,1738015844335,-300.0,0.00017963,2]
[350642967,1738015844345,-559.51,0.00018082,2]
[350642968,1738015844354,-729.27,0.00018082,2]
[350642969,1738015844363,-500.0,0.00018218,2]
[350642970,1738015844373,-559.51,0.00018219,2]
[350642971,1738015844382,-729.27,0.00018219,2]
[350642972,1738015844391,-559.51,0.00018356,2]
[350642973,1738015844401,-729.27,0.00018356,2]
[350642974,1738015844410,-559.51,0.00018493,2]
[350642975,1738015844419,-729.27,0.00018493,2]
[350642976,1738015844428,-153.0,0.000186,2]
[350642977,1738015844437,-153.0,0.000186,2]
[350642978,1738015844447,-153.0,0.000186,2]
[350642979,1738015844456,-153.0,0.000186,2]
[350642980,1738015844466,-153.0,0.000186,2]
[350642981,1738015844475,-153.0,0.000186,2]
[350642982,1738015844484,-153.0,0.000186,2]
[350642983,1738015844493,-153.0,0.000186,2]
[350642984,1738015844502,-500.0,0.00018609,2]
[350642985,1738015844511,-153.0,0.00018609,2]
[350642986,1738015844520,-153.0,0.00018609,2]
[350642987,1738015844529,-153.0,0.0001861,2]
[350642988,1738015844538,-153.0,0.0001861,2]
[350642989,1738015844547,-559.51,0.0001863,2]
[350642990,1738015844556,-729.27,0.0001863,2]
[350642991,1738015844565,-176.71,0.00018638,2]
[350642992,1738015844575,-559.51,0.00018767,2]
[350642993,1738015844584,-729.27,0.00018767,2]
[350642994,1738015844593,-311.8715765,0.000189,2]
[350642995,1738015844602,-311.87157636,0.000189,2]
[350642996,1738015844611,-311.87157636,0.000189,2]
[350642997,1738015844619,-311.87157636,0.000189,2]
[350642998,1738015844628,-311.87157636,0.000189,2]
[350642999,1738015844637,-311.87157636,0.000189,2]
[350643000,1738015844647,-559.51,0.00018904,2]
[350643001,1738015844656,-729.27,0.00018904,2]
[350643002,1738015844665,-500.0,0.00018908,2]
[350643003,1738015844675,-311.87157636,0.00018934,2]
[350643004,1738015844685,-559.51,0.00019041,2]
[350643005,1738015844695,-729.27,0.00019041,2]
[350643006,1738015844703,-311.87157636,0.00019107,2]
[350643007,1738015844713,-354.6801579,0.00019177,2]
[350643008,1738015844722,-559.51,0.00019178,2]
[350643009,1738015844732,-729.27,0.00019178,2]
[350643010,1738015844741,-160.345554,0.00019178,2]
[350643011,1738015844750,-311.87157636,0.00019279,2]
[350643012,1738015844760,-559.51,0.00019315,2]
[350643013,1738015844769,-729.27,0.00019315,2]
[350643014,1738015844780,-311.87157636,0.00019452,2]
[350643015,1738015844790,-559.51,0.00019452,2]
[350643016,1738015844800,-729.27,0.00019452,2]
[350643017,1738015844809,-167.67808661,0.00019487,2]
[350643018,1738015844818,-173.23902905,0.00019588,2]
[350643019,1738015844829,-559.6,0.00019589,2]
[350643020,1738015844838,-729.29999999,0.00019589,2]
[350643021,1738015844847,-311.87157636,0.00019624,2]
[350643022,1738015844856,-311.87157636,0.00019797,2]
[350643023,1738015844867,-311.87157636,0.00019969,2]
[350643024,1738015844876,-6017.0,0.0002,2]
[350643025,1738015844886,-1983.0884202,0.0002,2]
[350643026,1738015844896,-1983.08842019,0.0002,2]
[350643027,1738015844906,-1983.08842019,0.0002,2]
[350643028,1738015844915,-311.87157636,0.00020141,2]
[350643029,1738015844924,-311.87157636,0.00020314,2]
[350643030,1738015844933,-311.87157636,0.00020486,2]
[350643031,1738015844943,-1983.08842019,0.00020539,2]
[350643032,1738015844953,-499.0,0.00020547,2]
[350643033,1738015844962,-311.87157636,0.00020659,2]
[350643034,1738015844972,-311.87157636,0.00020831,2]
[350643035,1738015844981,-2812.763198,0.00021,2]
[350643036,1738015844990,-311.87157636,0.00021003,2]
[350643037,1738015845000,-400.0,0.000211,2]
[350643038,1738015845009,-311.87157636,0.00021176,2]
[350643039,1738015845019,-395.0,0.00021223,2]
[350643040,1738015845028,-311.87157636,0.00021348,2]
[350643041,1738015845037,-300.0,0.000214,9]
[350643042,1738015845046,-311.87157636,0.00021521,2]
[350643043,1738015845055,-154.705,0.000216,2]
[350643044,1738015845065,-321.45,0.000216,2]
[350643045,1738015845074,-6017.0,0.000216,4]
[350643046,1738015845083,-311.87157636,0.00021693,3]
[350643047,1738015845092,-150.74,0.00021729,2]
[350643048,1738015845101,-2048.0,0.00021729,2]
[350643049,1738015845111,-2304.0,0.00021729,2]
[350643050,1738015845120,-764.89,0.00021834,2]
[350643051,1738015845130,-354.0685108,0.00021841,2]
[350643052,1738015845139,-311.87157636,0.00021866,3]
[350643053,1738015845149,-616.62541249,0.00021917,2]
[350643054,1738015845158,-499.0,0.00021917,4]
[350643055,1738015845167,-311.87157636,0.00022038,3]
[350643056,1738015845177,-311.87157636,0.0002221,3]
[350643057,1738015845185,-311.87157636,0.00022383,3]
[350643058,1738015845195,-153.72,0.000225,31]
[350643059,1738015845205,-153.72,0.000225,31]
[350643060,1738015845214,-153.72,0.000225,31]
[350643061,1738015845223,-153.72,0.000225,31]
[350643062,1738015845233,-153.72,0.000225,31]
[350643063,1738015845242,-153.72,0.000225,31]
[350643064,1738015845251,-153.72,0.000225,31]
[350643065,1738015845260,-238.011538,0.00022516,2]
[350643066,1738015845269,-311.87157636,0.00022555,3]
[350643067,1738015845278,-153.0,0.0002257,3]
[350643068,1738015845287,-507.84897339,0.00022636,2]
[350643069,1738015845296,-167.67808661,0.00022636,2]
[350643070,1738015845305,-10411.63732338,0.00022699,2]
[350643071,1738015845314,-311.87157636,0.00022728,3]
[350643072,1738015845323,-14752.10225568,0.00022736,5]
[350643073,1738015845333,-3277.51791779,0.00022736,5]
[350643074,1738015845343,-151.0,0.00022736,7]
[350643075,1738015845351,-151.0,0.00022736,7]
[350643076,1738015845360,-269.027744,0.00022736,7]
[350643077,1738015845369,-211.929989,0.00022736,7]
[350643078,1738015845378,-151.0,0.00022736,7]
[350643079,1738015845387,-151.0,0.00022736,7]
[350643080,1738015845396,-151.0,0.00022736,7]
[350643081,1738015845405,-151.0,0.00022736,7]
[350643082,1738015845414,-151.0,0.00022736,7]
[350643083,1738015845423,-151.0,0.00022736,7]
[350643084,1738015845432,-151.0,0.00022736,7]
[350643085,1738015845442,-151.0,0.00022736,7]
[350643087,1738015845451,-151.0,0.00022736,7]
[350643088,1738015845461,-151.0,0.00022736,7]
[350643089,1738015845471,-151.0,0.00022736,7]
[350643090,1738015845480,-151.0,0.00022736,7]
[350643091,1738015845489,-151.0,0.00022736,7]
[350643092,1738015845498,-151.0,0.00022736,7]
[350643093,1738015845507,-261.0,0.00022736,7]
[350643094,1738015845517,-151.0,0.00022736,7]
[350643095,1738015845526,-151.0,0.00022736,7]
[350643096,1738015845535,-294.911336,0.00022736,7]
[350643097,1738015845545,-151.0,0.00022736,7]
[350643098,1738015845554,-151.0,0.00022736,7]
[350643099,1738015845564,-151.0,0.00022736,7]
[350643101,1738015845573,-151.0,0.00022736,7]
[350643103,1738015845582,-151.0,0.00022736,7]
[350643105,1738015845591,-151.0,0.00022736,7]
[350643106,1738015845600,-151.0,0.00022736,7]
[350643108,1738015845610,-151.433016,0.00022736,7]
[350643110,1738015845619,-151.0,0.00022736,7]
[350643112,1738015845628,-151.0,0.00022736,7]
[350643114,1738015845638,-151.0,0.00022736,7]
[350643116,1738015845647,-152.46889,0.00022736,7]
[350643118,1738015845656,-151.0,0.00022736,7]
[350643119,1738015845666,-151.0,0.00022736,7]
[350643121,1738015845675,-151.0,0.00022736,7]
[350643123,1738015845685,-151.0,0.00022736,7]
[350643124,1738015845695,-151.0,0.00022736,7]
[350643125,1738015845704,-269.632112,0.00022736,7]
[350643126,1738015845713,-41091.92534983,0.00022736,61]
[350643127,1738015845732,-1149.29758439,0.00022736,61]
[350643133,1738015847436,-150.0,0.000189,2]
[350643134,1738015847445,-561.62,0.00020547,2]
[350643135,1738015847454,-151.0,0.00022736,7]
[350643136,1738015847463,-151.0,0.00022736,7]
[350643137,1738015847473,-151.0,0.00022736,7]
[350643138,1738015847482,-151.0,0.00022736,7]
[350643139,1738015847491,-151.0,0.00022736,7]
[350643140,1738015847500,-11181.46746693,0.00022736,61]
[350643141,1738015847559,-50858.6429068,0.00022736,61]
[350643142,1738015847570,-810.54147823,0.00022736,61]
[350643143,1738015847646,-151.0,0.00022736,7]
[350643144,1738015847655,-151.0,0.00022736,7]
[350643145,1738015847664,-151.0,0.00022736,7]
[350643146,1738015847674,-151.0,0.00022736,7]
[350643147,1738015847683,-151.0,0.00022736,7]
[350643148,1738015847692,-151.0,0.00022736,7]
[350643149,1738015847703,-151.0,0.00022736,7]
[350643150,1738015847712,-10157.8472799,0.00022736,61]
[350643159,1738016305336,183.433786,0.00015549,2]
[350643160,1738016374123,18396.4104538,0.0001554,2]
[350643161,1738016466911,4546.3090024,0.00015567,2]
[350643162,1738016479278,785.4134831,0.0001564,2]
[350643163,1738016487418,785.4134831,0.0001564,2]
[350643164,1738016493944,2258.17791634,0.00015567,2]
[350643166,1738016522298,166.666667,0.00013973,2]
[350643167,1738016542774,322.2590687,0.00015506,2]
[350643168,1738016685152,288.25873421,0.0001564,2]
[350643169,1738016708756,797.41163084,0.0001564,2]
[350643171,1738016716809,5000.0,0.0001564,2]
[350643172,1738016735142,-356.15948252,0.00015667,2]
[350643173,1738016739367,2193.2005365,0.00015437,2]
[350643176,1738016794547,188.712388,0.00013699,2]
[350643177,1738016826147,-287.90194959,0.00015667,2]
[350643178,1738016826167,-3898.52057329,0.00015767,2]
[350643179,1738016854101,-2858.01165182,0.00015767,2]
[350643184,1738016886204,288.25873421,0.0001564,2]
[350643185,1738016894580,288.25873421,0.0001564,2]
[350643189,1738016949151,-1305.39976819,0.00015767,2]
[350643190,1738016949187,-300.0,0.00016436,2]
[350643191,1738016949219,-5085.53185257,0.00016437,2]
[350643192,1738016949252,-266.65850845,0.00016437,2]
[350643193,1738016949283,-466.67368694,0.00016437,2]
[350643194,1738016949318,-500.0,0.00016437,2]
[350643195,1738016949352,-500.0,0.00016437,2]
[350643196,1738016949386,-500.0,0.00016437,2]
[350643197,1738016949418,-500.0,0.00016437,2]
[350643198,1738016949453,-500.0,0.00016437,2]
[350643199,1738016949487,-500.0,0.00016437,2]
[350643200,1738016949522,-500.0,0.00016437,2]
[350643201,1738016949557,-500.0,0.00016437,2]
[350643202,1738016949590,-500.0,0.00016437,2]
[350643203,1738016949623,-500.0,0.00016437,2]
[350643204,1738016949655,-500.0,0.00016437,2]
[350643205,1738016949688,-500.0,0.00016437,2]
[350643206,1738016949718,-500.0,0.00016437,2]
[350643207,1738016949752,-500.0,0.00016437,2]
[350643208,1738016949787,-500.0,0.00016437,2]
[350643209,1738016949818,-515.88272399,0.00016437,2]
[350643210,1738016949851,-500.0,0.00016437,2]
[350643211,1738016949886,-500.0,0.00016437,2]
[350643212,1738016949921,-500.0,0.00016437,2]
[350643213,1738016949957,-500.0,0.00016437,2]
[350643214,1738016949992,-500.0,0.00016437,2]
[350643215,1738016950026,-500.0,0.00016437,2]
[350643216,1738016950061,-500.0,0.00016437,2]
[350643217,1738016950094,-500.0,0.00016437,2]
[350643218,1738016950127,-500.0,0.00016437,2]
[350643219,1738016950163,-500.0,0.00016437,2]
[350643220,1738016950197,-500.0,0.00016437,2]
[350643221,1738016950233,-500.0,0.00016437,2]
[350643222,1738016950266,-422.38696569,0.00016437,2]
[350643223,1738016950300,-500.0,0.00016437,2]
[350643224,1738016950335,-500.0,0.00016437,2]
[350643225,1738016950369,-500.0,0.00016437,2]
[350643226,1738016950400,-500.0,0.00016437,2]
[350643227,1738016950434,-600.0,0.00016437,2]
[350643228,1738016950466,-500.0,0.00016437,2]
[350643229,1738016950500,-500.0,0.00016437,2]
[350643230,1738016950530,-500.0,0.00016438,2]
[350643231,1738016950560,-422.91801308,0.00016438,2]
[350643232,1738016950590,-500.92207891,0.00016438,2]
[350643233,1738016950619,-500.0,0.00016438,2]
[350643234,1738016950652,-500.0,0.00016438,2]
[350643235,1738016950681,-497.71122502,0.00016438,2]
[350643236,1738016950821,-500.0,0.00016438,2]
[350643237,1738016950852,-500.0,0.00016438,2]
[350643238,1738016950883,-505.56682642,0.00016438,2]
[350643239,1738016950914,-631.40741804,0.00016438,2]
[350643240,1738016950945,-202.0050081,0.00016438,2]
[350643241,1738016950976,-500.0,0.00016438,2]
[350643242,1738016951008,-500.0,0.00016438,2]
[350643243,1738016951038,-500.0,0.00016438,2]
[350643244,1738016951068,-500.0,0.00016438,2]
[350643245,1738016951097,-500.0,0.00016438,2]
[350643246,1738016951127,-500.0,0.00016438,2]
[350643247,1738016951159,-500.0,0.00016438,2]
[350643248,1738016951190,-500.0,0.00016438,2]
[350643249,1738016951224,-500.0,0.00016438,2]
[350643250,1738016951259,-500.0,0.00016438,2]
[350643251,1738016951296,-500.0,0.00016438,2]
[350643252,1738016951330,-487.96197897,0.00016438,2]
[350643253,1738016951361,-504.38255903,0.00016438,2]
[350643254,1738016951393,-514.38189878,0.00016438,2]
[350643255,1738016951425,-500.0,0.00016438,2]
[350643256,1738016951457,-500.0,0.00016438,2]
[350643257,1738016951488,-500.0,0.00016438,2]
[350643258,1738016951520,-500.0,0.00016438,2]
[350643259,1738016951551,-500.0,0.00016438,2]
[350643260,1738016951583,-500.0,0.00016438,2]
[350643261,1738016951614,-500.0,0.00016438,2]
[350643262,1738016951644,-500.0,0.00016438,2]
[350643263,1738016951675,-500.0,0.00016438,2]
[350643264,1738016951706,-505.85664522,0.00016438,2]
[350643265,1738016951735,-500.0,0.00016438,2]
[350643266,1738016951766,-500.0,0.00016438,2]
[350643267,1738016951795,-500.0,0.00016438,2]
[350643268,1738016951829,-500.0,0.00016438,2]
[350643269,1738016951860,-500.0,0.00016438,2]
[350643270,1738016951891,-500.0,0.00016438,2]
[350643271,1738016951922,-500.0,0.00016438,2]
[350643272,1738016951952,-500.54404709,0.00016438,2]
[350643273,1738016951982,-503.72189122,0.00016438,2]
[350643274,1738016952015,-500.0,0.00016438,2]
[350643275,1738016952046,-334.19716381,0.00016438,2]
[350643276,1738016952077,-500.0,0.00016438,2]
[350643277,1738016952111,-500.0,0.00016438,2]
[350643278,1738016952146,-195.22,0.00016438,2]
[350643279,1738016952179,-228.01378121,0.00016438,2]
[350643280,1738016952216,-500.0,0.00016438,2]
[350643281,1738016952255,-500.0,0.00016438,2]
[350643282,1738016952293,-508.58993395,0.00016438,2]
[350643283,1738016952325,-500.0,0.00016438,2]
[350643284,1738016952358,-500.0,0.00016438,2]
[350643285,1738016952391,-501.68967736,0.00016438,2]
[350643286,1738016952424,-500.0,0.00016438,2]
[350643287,1738016952456,-328.7300133,0.00016438,2]
[350643288,1738016952489,-476.51497034,0.00016438,2]
[350643293,1738016965162,-23.48502966,0.00016438,2]
[350643294,1738016965182,-500.0,0.00016438,2]
[350643295,1738016965203,-500.0,0.00016438,2]
[350643296,1738016965225,-500.0,0.00016438,2]
[350643297,1738016965245,-500.0,0.00016438,2]
[350643298,1738016965265,-500.0,0.00016438,2]
[350643299,1738016965285,-500.0,0.00016438,2]
[350643300,1738016965306,-500.0,0.00016438,2]
[350643301,1738016965330,-500.0,0.00016438,2]
[350643302,1738016965351,-567.51302065,0.00016438,2]
[350643303,1738016965371,-503.8694491,0.00016438,2]
[350643304,1738016965391,-500.0,0.00016438,2]
[350643305,1738016965412,-544.09004501,0.00016438,2]
[350643306,1738016965432,-500.0,0.00016438,2]
[350643307,1738016965454,-1931.59,0.00016438,2]
[350643308,1738016965477,-500.0,0.00016438,2]
[350643309,1738016965499,-500.0,0.00016438,2]
[350643310,1738016965520,-500.0,0.00016438,2]
[350643311,1738016965540,-500.0,0.00016438,2]
[350643312,1738016965565,-500.0,0.00016438,2]
[350643313,1738016965588,-500.0,0.00016438,2]
[350643314,1738016965608,-500.0,0.00016438,2]
[350643315,1738016965629,-500.0,0.00016438,2]
[350643316,1738016965651,-500.0,0.00016438,2]
[350643317,1738016965672,-500.0,0.00016438,2]
[350643318,1738016965698,-500.0,0.00016438,2]
[350643319,1738016965727,-500.0,0.00016438,2]
[350643320,1738016965750,-500.0,0.00016438,2]
[350643321,1738016965771,-500.0,0.00016438,2]
[350643322,1738016965793,-500.0,0.00016438,2]
[350643323,1738016965815,-500.0,0.00016438,2]
[350643324,1738016965835,-500.0,0.00016438,2]
[350643325,1738016965856,-263.14086128,0.00016438,2]
[350643370,1738017032153,-733.96609801,0.00016338,2]
[350643372,1738017032162,-300.0,0.00016437,2]
[350643374,1738017032174,-236.85913872,0.00016438,2]
[350643376,1738017032183,-500.0,0.00016438,2]
[350643378,1738017032192,-500.0,0.00016438,2]
[350643380,1738017032202,-500.0,0.00016438,2]
[350643381,1738017032213,-500.0,0.00016438,2]
[350643382,1738017032223,-504.52773476,0.00016438,2]
[350643383,1738017032232,-500.0,0.00016438,2]
[350643384,1738017032241,-500.0,0.00016438,2]
[350643385,1738017032251,-500.0,0.00016438,2]
[350643386,1738017032260,-500.0,0.00016438,2]
[350643387,1738017032270,-500.0,0.00016438,2]
[350643388,1738017032280,-500.0,0.00016438,2]
[350643389,1738017032289,-500.0,0.00016438,2]
[350643390,1738017032299,-500.0,0.00016438,2]
[350643391,1738017032308,-500.0,0.00016438,2]
[350643392,1738017032317,-500.0,0.00016438,2]
[350643393,1738017032326,-500.0,0.00016438,2]
[350643394,1738017032335,-500.0,0.00016438,2]
[350643395,1738017032345,-500.0,0.00016438,2]
[350643396,1738017032355,-500.0,0.00016438,2]
[350643397,1738017032364,-500.0,0.00016438,2]
[350643398,1738017032373,-500.0,0.00016438,2]
[350643399,1738017032383,-500.0,0.00016438,2]
[350643400,1738017032392,-500.0,0.00016438,2]
[350643401,1738017032402,-500.0,0.00016438,2]
[350643402,1738017032411,-500.0,0.00016438,2]
[350643403,1738017032420,-500.0,0.00016438,2]
[350643404,1738017032430,-500.0,0.00016438,2]
[350643405,1738017032439,-500.0,0.00016438,2]
[350643406,1738017032448,-500.0,0.00016438,2]
[350643407,1738017032457,-500.0,0.00016438,2]
[350643408,1738017032466,-500.0,0.00016438,2]
[350643409,1738017032475,-500.0,0.00016438,2]
[350643410,1738017032485,-500.0,0.00016438,2]
[350643411,1738017032494,-500.0,0.00016438,2]
[350643412,1738017032503,-500.0,0.00016438,2]
[350643413,1738017032512,-500.0,0.00016438,2]
[350643414,1738017032521,-500.0,0.00016438,2]
[350643415,1738017032530,-500.0,0.00016438,2]
[350643416,1738017032539,-500.0,0.00016438,2]
[350643417,1738017032548,-500.0,0.00016438,2]
[350643418,1738017032558,-500.0,0.00016438,2]
[350643419,1738017032567,-355.26203974,0.00016438,2]
[350643420,1738017032576,-500.0,0.00016438,2]
[350643421,1738017032586,-500.0,0.00016438,2]
[350643422,1738017032595,-500.0,0.00016438,2]
[350643423,1738017032606,-500.0,0.00016438,2]
[350643424,1738017032616,-500.0,0.00016438,2]
[350643425,1738017032625,-500.0,0.00016438,2]
[350643426,1738017032634,-500.0,0.00016438,2]
[350643427,1738017032643,-500.0,0.00016438,2]
[350643428,1738017032652,-500.0,0.00016438,2]
[350643429,1738017032661,-500.0,0.00016438,2]
[350643430,1738017032670,-500.0,0.00016438,2]
[350643431,1738017032679,-500.0,0.00016438,2]
[350643432,1738017032688,-500.0,0.00016438,2]
[350643433,1738017032697,-500.0,0.00016438,2]
[350643434,1738017032706,-500.0,0.00016438,2]
[350643435,1738017032716,-500.0,0.00016438,2]
[350643436,1738017032725,-500.0,0.00016438,2]
[350643437,1738017032734,-500.0,0.00016438,2]
[350643438,1738017032744,-500.0,0.00016438,2]
[350643439,1738017032752,-500.0,0.00016438,2]
[350643440,1738017032762,-500.0,0.00016438,2]
[350643441,1738017032771,-500.0,0.00016438,2]
[350643442,1738017032780,-500.0,0.00016438,2]
[350643443,1738017032789,-500.0,0.00016438,2]
[350643444,1738017032798,-500.0,0.00016438,2]
[350643445,1738017032807,-500.0,0.00016438,2]
[350643446,1738017032816,-500.0,0.00016438,2]
[350643447,1738017032826,-500.0,0.00016438,2]
[350643448,1738017032836,-1851.11,0.00016438,2]
[350643449,1738017032845,-500.0,0.00016438,2]
[350643450,1738017032854,-500.0,0.00016438,2]
[350643451,1738017032863,-500.0,0.00016438,2]
[350643452,1738017032872,-500.0,0.00016438,2]
[350643453,1738017032882,-500.0,0.00016438,2]
[350643454,1738017032891,-530.4055608,0.00016438,2]
[350643455,1738017032899,-2010.62181918,0.00016438,2]
[350643456,1738017032909,-500.0,0.00016438,2]
[350643457,1738017032918,-500.0,0.00016438,2]
[350643458,1738017032927,-775.04,0.00016438,2]
[350643459,1738017032936,-500.0,0.00016438,2]
[350643460,1738017032945,-1840.4840141,0.00016438,2]
[350643461,1738017032955,-177.34119447,0.00016475,2]
[350643462,1738017032964,-500.0,0.00016575,2]
[350643463,1738017032973,-19.38503795,0.00016575,2]
[350643497,1738017037924,-260.02886554,0.00016438,2]
[350643499,1738017037936,-239.97113446,0.00016438,2]
[350643500,1738017037945,-222.17478046,0.00016438,2]
[350643501,1738017037955,-500.0,0.00016438,2]
[350643502,1738017037963,-344.60675286,0.00016575,2]
[350643503,1738017038036,-238.92820919,0.00016575,2]
[350643504,1738017038045,-470.09393585,0.00016575,2]
[350643505,1738017038057,-29.90606415,0.00016575,2]
[350643506,1738017038066,-500.0,0.00016575,2]
[350643507,1738017038075,-500.0,0.00016575,2]
[350643508,1738017038085,-481.82,0.00016575,2]
[350643509,1738017038094,-500.0,0.00016575,2]
[350643511,1738017038103,-500.0,0.00016575,2]
[350643513,1738017038112,-500.0,0.00016575,2]
[350643515,1738017038122,-626.6847651,0.00016575,2]
[350643517,1738017038131,-500.0,0.00016575,2]
[350643519,1738017038140,-295.37082511,0.00016575,2]
[350643521,1738017038151,-204.62917489,0.00016575,2]
[350643523,1738017038161,-500.0,0.00016575,2]
[350643525,1738017038172,-500.0,0.00016575,2]
[350643526,1738017038182,-558.47290326,0.00016575,2]
[350643527,1738017038192,-500.0,0.00016575,2]
[350643529,1738017038201,-500.0,0.00016575,2]
[350643531,1738017038210,-500.0,0.00016575,2]
[350643533,1738017038221,-500.0,0.00016575,2]
[350643535,1738017038230,-500.0,0.00016575,2]
[350643537,1738017038239,-500.0,0.00016575,2]
[350643539,1738017038249,-500.0,0.00016575,2]
[350643541,1738017038258,-500.0,0.00016575,2]
[350643543,1738017038267,-500.0,0.00016575,2]
[350643545,1738017038276,-156.80359155,0.00016575,2]
[350643549,1738017038554,-39.57327584,0.00016575,2]
[350643558,1738017040147,-303.62313261,0.00016575,2]
[350643559,1738017040157,-500.0,0.00016575,2]
[350643560,1738017040166,-374.39738383,0.00016575,2]
[350643561,1738017040180,-125.60261617,0.00016575,2]
[350643562,1738017040189,-213.80194319,0.00016575,2]
[350643563,1738017040233,-286.19805681,0.00016575,2]
[350643564,1738017040242,-500.0,0.00016575,2]
[350643565,1738017040254,-500.0,0.00016575,2]
[350643566,1738017040264,-329.98,0.00016575,2]
[350643567,1738017040273,-500.0,0.00016575,2]
[350643568,1738017040282,-500.0,0.00016575,2]
[350643569,1738017040291,-500.0,0.00016575,2]
[350643570,1738017040301,-500.0,0.00016575,2]
[350643571,1738017040310,-500.0,0.00016575,2]
[350643572,1738017040319,-500.0,0.00016575,2]
[350643573,1738017040328,-500.0,0.00016575,2]
[350643574,1738017040336,-500.0,0.00016575,2]
[350643575,1738017040346,-500.0,0.00016575,2]
[350643576,1738017040355,-500.0,0.00016575,2]
[350643577,1738017040364,-500.0,0.00016575,2]
[350643578,1738017040373,-500.0,0.00016575,2]
[350643579,1738017040382,-500.0,0.00016575,2]
[350643580,1738017040391,-645.25699983,0.00016575,2]
[350643581,1738017040401,-500.0,0.00016575,2]
[350643582,1738017040514,-500.0,0.00016575,2]
[350643583,1738017040531,-500.0,0.00016575,2]
[350643584,1738017040541,-500.0,0.00016575,2]
[350643585,1738017040550,-500.0,0.00016575,2]
[350643586,1738017040559,-500.0,0.00016575,2]
[350643587,1738017040569,-500.0,0.00016575,2]